[Event "*** SCC Grand Prix: Titled Tuesday Blitz"]
[Site "Chess.com"]
[Date "2020.07.14"]
[Round "10"]
[White "Zkid"]
[Black "Oleksandr_Bortnyk"]
[Result "0-1"]
[WhiteElo "2789"]
[BlackElo "2941"]
[TimeControl "180+1"]
[EndTime "11:58:34 PDT"]
[Termination "Oleksandr_Bortnyk won on time"]

1. e4 {[%clk 0:03:00.9]} 1... Nf6 {[%clk 0:02:53.7]} 2. e5 {[%clk 0:02:59.5]}
2... Nd5 {[%clk 0:02:53.4]} 3. d4 {[%clk 0:03:00.1]} 3... d6 {[%clk 0:02:53.7]}
4. Nf3 {[%clk 0:03:00.7]} 4... dxe5 {[%clk 0:02:54.3]} 5. Nxe5 {[%clk
0:03:00.1]} 5... c6 {[%clk 0:02:54.6]} 6. Qf3 {[%clk 0:02:56.1]} 6... Be6 {[%clk
0:02:54.4]} 7. Bc4 {[%clk 0:02:54.1]} 7... Nd7 {[%clk 0:02:54.5]} 8. Nxd7 {[%clk
0:02:52.8]} 8... Qxd7 {[%clk 0:02:54.8]} 9. O-O {[%clk 0:02:53.1]} 9... g6
{[%clk 0:02:55.1]} 10. Nd2 {[%clk 0:02:48.2]} 10... Bg7 {[%clk 0:02:55.1]} 11.
c3 {[%clk 0:02:48.3]} 11... O-O {[%clk 0:02:40.6]} 12. Ne4 {[%clk 0:02:44.6]}
12... b6 {[%clk 0:02:41.1]} 13. Re1 {[%clk 0:02:33.5]} 13... Rae8 {[%clk
0:02:34.9]} 14. a4 {[%clk 0:02:28.8]} 14... Bg4 {[%clk 0:02:31.4]} 15. Qg3
{[%clk 0:02:28]} 15... e5 {[%clk 0:02:31.8]} 16. Bg5 {[%clk 0:01:48.5]} 16... f5
{[%clk 0:02:19.5]} 17. Nd2 {[%clk 0:01:12.9]} 17... h6 {[%clk 0:02:19.1]} 18. h3
{[%clk 0:01:06.9]} 18... Bh5 {[%clk 0:02:18.6]} 19. Bh4 {[%clk 0:00:55.8]} 19...
f4 {[%clk 0:02:15.9]} 20. Qd3 {[%clk 0:00:45.6]} 20... g5 {[%clk 0:02:16]} 21.
dxe5 {[%clk 0:00:24.8]} 21... Rxe5 {[%clk 0:02:05]} 22. Rxe5 {[%clk 0:00:20.9]}
22... Bxe5 {[%clk 0:02:05.9]} 23. Nf3 {[%clk 0:00:15.5]} 23... Bf6 {[%clk
0:01:59.3]} 24. Nd4 {[%clk 0:00:10.4]} 24... gxh4 {[%clk 0:01:57]} 25. Nxc6
{[%clk 0:00:10]} 25... Bf7 {[%clk 0:01:53.7]} 26. Nxa7 {[%clk 0:00:09.7]} 26...
Qxa7 {[%clk 0:01:40.3]} 27. Bxd5 {[%clk 0:00:09]} 27... Kg7 {[%clk 0:01:40.6]}
28. Bxf7 {[%clk 0:00:08.9]} 28... Rxf7 {[%clk 0:01:38.3]} 29. Qf3 {[%clk
0:00:08.9]} 29... Bg5 {[%clk 0:01:35.2]} 30. Qd5 {[%clk 0:00:07.7]} 30... f3
{[%clk 0:01:32]} 31. gxf3 {[%clk 0:00:05.7]} 31... Qc7 {[%clk 0:01:28.6]} 32.
Re1 {[%clk 0:00:05.1]} 32... Qf4 {[%clk 0:01:27.1]} 33. Re6 {[%clk 0:00:05.3]}
33... Bf6 {[%clk 0:00:51.8]} 34. Rxb6 {[%clk 0:00:04.8]} 34... Be5 {[%clk
0:00:47.5]} 35. Kf1 {[%clk 0:00:03.6]} 35... Qc1+ {[%clk 0:00:24]} 36. Ke2
{[%clk 0:00:03.9]} 36... Qc2+ {[%clk 0:00:22.4]} 37. Kf1 {[%clk 0:00:04.4]}
37... Qf5 {[%clk 0:00:21.4]} 38. Qe4 {[%clk 0:00:04]} 38... Qxh3+ {[%clk
0:00:21.2]} 39. Ke2 {[%clk 0:00:04.1]} 39... Bf6 {[%clk 0:00:19.9]} 40. Rb5
{[%clk 0:00:02.8]} 40... Re7 {[%clk 0:00:19.5]} 0-1

[Event "*** SCC Grand Prix: Titled Tuesday Blitz"]
[Site "Chess.com"]
[Date "2020.07.14"]
[Round "10"]
[White "FMJoseHerrera"]
[Black "KyrgyzFighter"]
[Result "1-0"]
[WhiteElo "2496"]
[BlackElo "2298"]
[TimeControl "180+1"]
[EndTime "11:58:34 PDT"]
[Termination "FMJoseHerrera won by checkmate"]

1. Nf3 {[%clk 0:02:59.4]} 1... f5 {[%clk 0:02:59.1]} 2. g3 {[%clk 0:02:59.1]}
2... Nf6 {[%clk 0:02:59.1]} 3. Bg2 {[%clk 0:03:00]} 3... g6 {[%clk 0:02:59.4]}
4. d3 {[%clk 0:02:59.3]} 4... d6 {[%clk 0:02:58.6]} 5. Nc3 {[%clk 0:03:00.2]}
5... Nc6 {[%clk 0:02:58.3]} 6. h4 {[%clk 0:03:01.1]} 6... h6 {[%clk 0:02:56.7]}
7. e4 {[%clk 0:03:00.1]} 7... e5 {[%clk 0:02:56]} 8. exf5 {[%clk 0:02:58.1]}
8... gxf5 {[%clk 0:02:54.6]} 9. h5 {[%clk 0:02:56.3]} 9... Bg7 {[%clk
0:02:54.4]} 10. Nh4 {[%clk 0:02:56.4]} 10... Be6 {[%clk 0:02:49.5]} 11. Ng6
{[%clk 0:02:56.1]} 11... Rh7 {[%clk 0:02:49.8]} 12. Be3 {[%clk 0:02:54.3]} 12...
Qd7 {[%clk 0:02:49.8]} 13. f4 {[%clk 0:02:37.8]} 13... Ng4 {[%clk 0:02:44.3]}
14. Bg1 {[%clk 0:02:37.9]} 14... d5 {[%clk 0:02:39.5]} 15. fxe5 {[%clk
0:02:31.7]} 15... Ncxe5 {[%clk 0:02:34]} 16. Nf4 {[%clk 0:02:31.8]} 16... O-O-O
{[%clk 0:02:22.1]} 17. Qe2 {[%clk 0:02:09.4]} 17... d4 {[%clk 0:02:12.9]} 18.
Bxd4 {[%clk 0:01:59.9]} 18... Nxd3+ {[%clk 0:01:57.3]} 19. cxd3 {[%clk
0:01:52.7]} 19... Bxd4 {[%clk 0:01:55.4]} 20. O-O-O {[%clk 0:01:18.7]} 20... Ne3
{[%clk 0:01:49.6]} 21. Qf3 {[%clk 0:01:15.8]} 21... c6 {[%clk 0:01:47.4]} 22.
Rde1 {[%clk 0:01:11.8]} 22... Nxg2 {[%clk 0:01:02.5]} 23. Qxg2 {[%clk
0:01:12.7]} 23... Bxc3 {[%clk 0:01:02.4]} 24. bxc3 {[%clk 0:01:04.1]} 24... Bg8
{[%clk 0:01:01.5]} 25. Re5 {[%clk 0:01:01.1]} 25... Rg7 {[%clk 0:00:41.3]} 26.
Rhe1 {[%clk 0:01:00.6]} 26... Qd6 {[%clk 0:00:32.2]} 27. Kb2 {[%clk 0:00:55.8]}
27... Qc7 {[%clk 0:00:20.1]} 28. d4 {[%clk 0:00:40.2]} 28... Qb6+ {[%clk
0:00:19.8]} 29. Ka1 {[%clk 0:00:40.7]} 29... Qa6 {[%clk 0:00:19.6]} 30. Re8
{[%clk 0:00:19]} 30... Rxg3 {[%clk 0:00:19.2]} 31. Rxd8+ {[%clk 0:00:18.3]}
31... Kxd8 {[%clk 0:00:20.1]} 32. Qh2 {[%clk 0:00:14.1]} 32... Rg4 {[%clk
0:00:12]} 33. Ng6 {[%clk 0:00:10.3]} 33... Qc4 {[%clk 0:00:10.2]} 34. Qb8+
{[%clk 0:00:09.7]} 34... Kd7 {[%clk 0:00:10]} 35. Re7# {[%clk 0:00:09.5]} 1-0

[Event "*** SCC Grand Prix: Titled Tuesday Blitz"]
[Site "Chess.com"]
[Date "2020.07.14"]
[Round "10"]
[White "DishonorOnYourCow"]
[Black "talaicito"]
[Result "1-0"]
[WhiteElo "2330"]
[BlackElo "2177"]
[TimeControl "180+1"]
[EndTime "11:58:34 PDT"]
[Termination "DishonorOnYourCow won on time"]

1. d4 {[%clk 0:03:00.9]} 1... e6 {[%clk 0:02:58.8]} 2. c4 {[%clk 0:02:59.5]}
2... f5 {[%clk 0:02:58.7]} 3. g3 {[%clk 0:02:56.8]} 3... Nf6 {[%clk 0:02:58.7]}
4. Nh3 {[%clk 0:02:56.4]} 4... Be7 {[%clk 0:02:58.1]} 5. Bg2 {[%clk 0:02:55.5]}
5... d6 {[%clk 0:02:58.5]} 6. Nf4 {[%clk 0:02:54.9]} 6... O-O {[%clk 0:02:57.5]}
7. O-O {[%clk 0:02:53.4]} 7... e5 {[%clk 0:02:54.7]} 8. dxe5 {[%clk 0:02:52.8]}
8... dxe5 {[%clk 0:02:55.6]} 9. Nd5 {[%clk 0:02:49.6]} 9... Bc5 {[%clk
0:02:52.3]} 10. Bg5 {[%clk 0:02:46.8]} 10... Nbd7 {[%clk 0:02:40.8]} 11. Nbc3
{[%clk 0:02:39]} 11... c6 {[%clk 0:02:39.6]} 12. Nxf6+ {[%clk 0:02:33.9]} 12...
Nxf6 {[%clk 0:02:40.5]} 13. Qc2 {[%clk 0:02:29.7]} 13... h6 {[%clk 0:02:29.4]}
14. Bd2 {[%clk 0:02:18.8]} 14... Qe8 {[%clk 0:02:13.2]} 15. a3 {[%clk
0:02:15.7]} 15... Qh5 {[%clk 0:02:06.1]} 16. b4 {[%clk 0:02:10.1]} 16... Bd6
{[%clk 0:01:55.6]} 17. c5 {[%clk 0:02:02.3]} 17... Bc7 {[%clk 0:01:55.4]} 18. b5
{[%clk 0:01:12.4]} 18... e4 {[%clk 0:01:51.5]} 19. bxc6 {[%clk 0:01:11.4]} 19...
bxc6 {[%clk 0:01:51.5]} 20. f3 {[%clk 0:01:07.4]} 20... Be5 {[%clk 0:01:26.6]}
21. fxe4 {[%clk 0:01:03.3]} 21... Ng4 {[%clk 0:01:18.2]} 22. h3 {[%clk
0:00:40.8]} 22... Bxg3 {[%clk 0:01:16.8]} 23. exf5 {[%clk 0:00:27.9]} 23... Nh2
{[%clk 0:01:00.3]} 24. Ne4 {[%clk 0:00:19]} 24... Nxf1 {[%clk 0:00:57.3]} 25.
Rxf1 {[%clk 0:00:19.9]} 25... Be5 {[%clk 0:00:45.2]} 26. f6 {[%clk 0:00:13.3]}
26... Bxh3 {[%clk 0:00:41.3]} 27. Qb3+ {[%clk 0:00:13]} 27... Kh7 {[%clk
0:00:26.5]} 28. Qxh3 {[%clk 0:00:12.4]} 28... Qxe2 {[%clk 0:00:19.1]} 29. Ng5+
{[%clk 0:00:10.1]} 29... Kh8 {[%clk 0:00:13.7]} 30. fxg7+ {[%clk 0:00:10.1]}
30... Bxg7 {[%clk 0:00:09.6]} 31. Rxf8+ {[%clk 0:00:06.7]} 31... Rxf8 {[%clk
0:00:08.2]} 32. Bc3 {[%clk 0:00:06.9]} 32... Qf2+ {[%clk 0:00:02.5]} 33. Kh1
{[%clk 0:00:06.3]} 1-0

[Event "*** SCC Grand Prix: Titled Tuesday Blitz"]
[Site "Chess.com"]
[Date "2020.07.14"]
[Round "10"]
[White "MasterKroket"]
[Black "CzechmVIII"]
[Result "1-0"]
[WhiteElo "2383"]
[BlackElo "2192"]
[TimeControl "180+1"]
[EndTime "11:58:34 PDT"]
[Termination "MasterKroket won by resignation"]

1. d4 {[%clk 0:03:00.9]} 1... Nf6 {[%clk 0:03:00]} 2. c4 {[%clk 0:03:00.8]} 2...
c5 {[%clk 0:03:00.2]} 3. d5 {[%clk 0:03:00.9]} 3... b5 {[%clk 0:03:00.5]} 4.
cxb5 {[%clk 0:03:01.7]} 4... a6 {[%clk 0:03:00.8]} 5. bxa6 {[%clk 0:03:01.9]}
5... g6 {[%clk 0:03:00.7]} 6. Nc3 {[%clk 0:03:02.3]} 6... Bxa6 {[%clk
0:03:00.2]} 7. Nf3 {[%clk 0:03:01.7]} 7... Bg7 {[%clk 0:02:58.4]} 8. e4 {[%clk
0:03:02.3]} 8... Qa5 {[%clk 0:02:58.3]} 9. Bxa6 {[%clk 0:02:53.5]} 9... Nxe4
{[%clk 0:02:44.3]} 10. O-O {[%clk 0:02:12.9]} 10... Nxc3 {[%clk 0:02:34.6]} 11.
bxc3 {[%clk 0:01:49]} 11... Qxa6 {[%clk 0:02:26.8]} 12. Qb3 {[%clk 0:01:40]}
12... O-O {[%clk 0:02:21.1]} 13. Bg5 {[%clk 0:01:36.1]} 13... d6 {[%clk
0:01:55.8]} 14. Bxe7 {[%clk 0:01:29.7]} 14... Re8 {[%clk 0:01:56]} 15. Rfe1
{[%clk 0:01:30.2]} 15... Nd7 {[%clk 0:01:50.9]} 16. g3 {[%clk 0:01:11.6]} 16...
Ne5 {[%clk 0:01:37.7]} 17. Nxe5 {[%clk 0:01:11.8]} 17... Bxe5 {[%clk 0:01:32.7]}
18. Rxe5 {[%clk 0:00:52.8]} 18... dxe5 {[%clk 0:01:24]} 19. d6 {[%clk
0:00:53.2]} 19... Ra7 {[%clk 0:00:51.2]} 20. Qd5 {[%clk 0:00:52.2]} 20... Rd7
{[%clk 0:00:38.3]} 21. Qxc5 {[%clk 0:00:41.8]} 21... Rc8 {[%clk 0:00:27.4]} 22.
Qxe5 {[%clk 0:00:41]} 22... Qc4 {[%clk 0:00:22.2]} 23. Bf6 {[%clk 0:00:33.7]}
23... Qe6 {[%clk 0:00:18.7]} 24. Qxe6 {[%clk 0:00:24.4]} 24... fxe6 {[%clk
0:00:19.6]} 25. Be5 {[%clk 0:00:25]} 25... Ra8 {[%clk 0:00:16.8]} 26. c4 {[%clk
0:00:23.7]} 26... Ra5 {[%clk 0:00:14.3]} 27. f4 {[%clk 0:00:19.1]} 27... Rc5
{[%clk 0:00:13.5]} 28. Rc1 {[%clk 0:00:19.4]} 28... Kf7 {[%clk 0:00:13.8]} 29.
Kf2 {[%clk 0:00:19.7]} 29... Ke8 {[%clk 0:00:13.6]} 30. Ke3 {[%clk 0:00:20.3]}
30... Ra7 {[%clk 0:00:13.8]} 31. Kd4 {[%clk 0:00:20.7]} 31... Rca5 {[%clk
0:00:13.6]} 32. c5 {[%clk 0:00:20.6]} 32... Rxa2 {[%clk 0:00:13.4]} 33. c6
{[%clk 0:00:20.7]} 33... Rd2+ {[%clk 0:00:13.6]} 34. Ke3 {[%clk 0:00:20.5]}
34... Raa2 {[%clk 0:00:11.5]} 35. c7 {[%clk 0:00:20.6]} 35... Re2+ {[%clk
0:00:11.4]} 36. Kf3 {[%clk 0:00:21]} 36... Rf2+ {[%clk 0:00:11.7]} 37. Kg4
{[%clk 0:00:21.5]} 37... Ra8 {[%clk 0:00:10.7]} 38. c8=Q+ {[%clk 0:00:21.3]}
38... Rxc8 {[%clk 0:00:11.1]} 39. Rxc8+ {[%clk 0:00:21.9]} 39... Kd7 {[%clk
0:00:11.5]} 40. Rc7+ {[%clk 0:00:22.5]} 40... Kd8 {[%clk 0:00:11.9]} 41. Rxh7
{[%clk 0:00:22.2]} 41... Rd2 {[%clk 0:00:10.6]} 42. Kg5 {[%clk 0:00:22.1]} 1-0

[Event "*** SCC Grand Prix: Titled Tuesday Blitz"]
[Site "Chess.com"]
[Date "2020.07.14"]
[Round "10"]
[White "FatUpss"]
[Black "bugsbunny444"]
[Result "1-0"]
[WhiteElo "2739"]
[BlackElo "2473"]
[TimeControl "180+1"]
[EndTime "11:58:35 PDT"]
[Termination "FatUpss won by checkmate"]

1. e4 {[%clk 0:03:00.9]} 1... c5 {[%clk 0:02:57.7]} 2. Nc3 {[%clk 0:02:59.7]}
2... e6 {[%clk 0:02:57.5]} 3. Nge2 {[%clk 0:02:59]} 3... d5 {[%clk 0:02:56]} 4.
exd5 {[%clk 0:02:58.6]} 4... exd5 {[%clk 0:02:56.8]} 5. d4 {[%clk 0:02:59.4]}
5... Nf6 {[%clk 0:02:57.5]} 6. h3 {[%clk 0:02:53.7]} 6... Nc6 {[%clk 0:02:55]}
7. Be3 {[%clk 0:02:52.3]} 7... cxd4 {[%clk 0:02:40.3]} 8. Nxd4 {[%clk
0:02:53.2]} 8... Be7 {[%clk 0:02:35.1]} 9. Bd3 {[%clk 0:02:49.8]} 9... O-O
{[%clk 0:02:35.3]} 10. O-O {[%clk 0:02:49.3]} 10... Re8 {[%clk 0:02:35.8]} 11.
Re1 {[%clk 0:02:46.2]} 11... h6 {[%clk 0:02:33.2]} 12. Bf1 {[%clk 0:02:34.5]}
12... Bd7 {[%clk 0:02:15.4]} 13. Qf3 {[%clk 0:02:20.3]} 13... Bb4 {[%clk
0:02:00]} 14. Rad1 {[%clk 0:01:54.8]} 14... Ne5 {[%clk 0:01:56.3]} 15. Qf4
{[%clk 0:01:17.3]} 15... Rc8 {[%clk 0:01:41]} 16. Ne6 {[%clk 0:01:02.5]} 16...
Qa5 {[%clk 0:00:30.4]} 17. Nxg7 {[%clk 0:00:58.6]} 17... Kxg7 {[%clk 0:00:17.3]}
18. Qxh6+ {[%clk 0:00:57.5]} 18... Kg8 {[%clk 0:00:17.8]} 19. Qxf6 {[%clk
0:00:56.9]} 19... Rc6 {[%clk 0:00:12.8]} 20. Qh4 {[%clk 0:00:48.3]} 20... Bxc3
{[%clk 0:00:11.8]} 21. bxc3 {[%clk 0:00:46.3]} 21... Rg6 {[%clk 0:00:11.5]} 22.
Kh1 {[%clk 0:00:44.9]} 22... Bb5 {[%clk 0:00:04.5]} 23. Bd4 {[%clk 0:00:44.1]}
23... Bxf1 {[%clk 0:00:04.5]} 24. Bxe5 {[%clk 0:00:33.7]} 24... Bxg2+ {[%clk
0:00:04.1]} 25. Kh2 {[%clk 0:00:34.2]} 25... f6 {[%clk 0:00:03.5]} 26. Bxf6
{[%clk 0:00:33.3]} 26... Rxe1 {[%clk 0:00:03]} 27. Rxe1 {[%clk 0:00:31.7]} 27...
Be4 {[%clk 0:00:03.9]} 28. Bg5 {[%clk 0:00:17.9]} 28... Qc7+ {[%clk 0:00:03.6]}
29. f4 {[%clk 0:00:18.1]} 29... Qh7 {[%clk 0:00:03.7]} 30. Qg4 {[%clk
0:00:17.5]} 30... Qf7 {[%clk 0:00:03.6]} 31. Qc8+ {[%clk 0:00:14.9]} 31... Kh7
{[%clk 0:00:03.7]} 32. Qg4 {[%clk 0:00:10.2]} 32... Bf5 {[%clk 0:00:02.7]} 33.
Qh4+ {[%clk 0:00:10.7]} 33... Kg8 {[%clk 0:00:02.6]} 34. Re7 {[%clk 0:00:10.8]}
34... Qf8 {[%clk 0:00:03.2]} 35. Qh7# {[%clk 0:00:10.3]} 1-0

[Event "*** SCC Grand Prix: Titled Tuesday Blitz"]
[Site "Chess.com"]
[Date "2020.07.14"]
[Round "10"]
[White "Maghalashvili"]
[Black "Mbneu"]
[Result "0-1"]
[WhiteElo "2729"]
[BlackElo "2252"]
[TimeControl "180+1"]
[EndTime "11:58:36 PDT"]
[Termination "Mbneu won on time"]

1. Nf3 {[%clk 0:03:00.9]} 1... Nf6 {[%clk 0:02:57.4]} 2. g4 {[%clk 0:02:58.6]}
2... Nxg4 {[%clk 0:02:55.4]} 3. Rg1 {[%clk 0:02:58.5]} 3... d6 {[%clk
0:02:53.3]} 4. Nc3 {[%clk 0:02:56.1]} 4... Ne5 {[%clk 0:02:47.8]} 5. e3 {[%clk
0:02:51]} 5... Bg4 {[%clk 0:02:39.4]} 6. Be2 {[%clk 0:02:49]} 6... Bxf3 {[%clk
0:02:37.6]} 7. Bxf3 {[%clk 0:02:49.9]} 7... Nxf3+ {[%clk 0:02:37.9]} 8. Qxf3
{[%clk 0:02:50.7]} 8... c6 {[%clk 0:02:37.7]} 9. b3 {[%clk 0:02:50.3]} 9... g6
{[%clk 0:02:35.9]} 10. Bb2 {[%clk 0:02:51.2]} 10... Bg7 {[%clk 0:02:34.8]} 11.
O-O-O {[%clk 0:02:50.6]} 11... Nd7 {[%clk 0:02:34.3]} 12. h4 {[%clk 0:02:43.3]}
12... h5 {[%clk 0:02:27.7]} 13. Kb1 {[%clk 0:02:38.2]} 13... a5 {[%clk
0:02:24.8]} 14. d4 {[%clk 0:02:34.6]} 14... Qc7 {[%clk 0:02:19.5]} 15. Ne4
{[%clk 0:02:31.8]} 15... a4 {[%clk 0:02:14.4]} 16. Ng5 {[%clk 0:02:30]} 16...
Nf6 {[%clk 0:02:11.8]} 17. e4 {[%clk 0:02:29.9]} 17... axb3 {[%clk 0:01:41.5]}
18. axb3 {[%clk 0:02:28.1]} 18... e6 {[%clk 0:01:32.4]} 19. c4 {[%clk
0:02:15.4]} 19... Ng4 {[%clk 0:01:16.4]} 20. Qf4 {[%clk 0:02:06.1]} 20... e5
{[%clk 0:01:13]} 21. Qd2 {[%clk 0:02:05.2]} 21... exd4 {[%clk 0:01:07.3]} 22.
Bxd4 {[%clk 0:02:04.7]} 22... Bxd4 {[%clk 0:01:05.9]} 23. Qxd4 {[%clk
0:02:05.6]} 23... O-O {[%clk 0:01:04.9]} 24. f3 {[%clk 0:01:55.3]} 24... c5
{[%clk 0:00:56.6]} 25. Qd2 {[%clk 0:01:37.5]} 25... Ne5 {[%clk 0:00:48.2]} 26.
Qxd6 {[%clk 0:01:36.7]} 26... Qa5 {[%clk 0:00:20]} 27. Qxe5 {[%clk 0:01:34.4]}
27... Qa2+ {[%clk 0:00:19.4]} 28. Kc1 {[%clk 0:01:34.3]} 28... Qxb3 {[%clk
0:00:19.3]} 29. Rd2 {[%clk 0:01:23]} 29... Rfd8 {[%clk 0:00:13.6]} 30. Rc2
{[%clk 0:01:12.9]} 30... Qe3+ {[%clk 0:00:12.3]} 31. Kb2 {[%clk 0:01:11.6]}
31... Qxg1 {[%clk 0:00:11.9]} 32. f4 {[%clk 0:00:51.2]} 32... Qa1+ {[%clk
0:00:12.3]} 0-1

[Event "*** SCC Grand Prix: Titled Tuesday Blitz"]
[Site "Chess.com"]
[Date "2020.07.14"]
[Round "10"]
[White "sertalzin"]
[Black "Boudicca64"]
[Result "1-0"]
[WhiteElo "1955"]
[BlackElo "1784"]
[TimeControl "180+1"]
[EndTime "11:58:36 PDT"]
[Termination "sertalzin won on time"]

1. d4 {[%clk 0:03:00.9]} 1... g6 {[%clk 0:02:57.5]} 2. c4 {[%clk 0:03:00.1]}
2... Bg7 {[%clk 0:02:56.5]} 3. Nc3 {[%clk 0:03:00.5]} 3... c5 {[%clk 0:02:55.6]}
4. d5 {[%clk 0:02:57.8]} 4... Bxc3+ {[%clk 0:02:54.4]} 5. bxc3 {[%clk
0:02:57.2]} 5... f5 {[%clk 0:02:54.6]} 6. e4 {[%clk 0:02:56.5]} 6... fxe4 {[%clk
0:02:52.5]} 7. f3 {[%clk 0:02:56.1]} 7... e5 {[%clk 0:02:50.9]} 8. fxe4 {[%clk
0:02:55.2]} 8... Qh4+ {[%clk 0:02:49.2]} 9. Kd2 {[%clk 0:02:42.1]} 9... Nf6
{[%clk 0:02:46.7]} 10. Nf3 {[%clk 0:02:14.3]} 10... Nxe4+ {[%clk 0:02:43.8]} 11.
Kc2 {[%clk 0:02:10.4]} 11... Qh5 {[%clk 0:02:10.2]} 12. Qe1 {[%clk 0:02:05.1]}
12... d6 {[%clk 0:02:03.7]} 13. Bd3 {[%clk 0:02:01.2]} 13... Nf6 {[%clk
0:01:53]} 14. h3 {[%clk 0:01:49.5]} 14... e4 {[%clk 0:01:26]} 15. Bxe4 {[%clk
0:01:41.1]} 15... O-O {[%clk 0:00:57.1]} 16. g4 {[%clk 0:01:38.4]} 16... Bxg4
{[%clk 0:00:55.1]} 17. hxg4 {[%clk 0:01:31.1]} 17... Qxg4 {[%clk 0:00:54.2]} 18.
Rh4 {[%clk 0:01:25.8]} 18... Qg2+ {[%clk 0:00:38.4]} 19. Nd2 {[%clk 0:01:10.6]}
19... Re8 {[%clk 0:00:18.9]} 20. Bxg2 {[%clk 0:00:46.3]} 20... Rxe1 {[%clk
0:00:15.9]} 21. Bb2 {[%clk 0:00:43.2]} 21... Re2 {[%clk 0:00:12.2]} 22. Bh1
{[%clk 0:00:29.9]} 22... Nbd7 {[%clk 0:00:10.7]} 23. Rf1 {[%clk 0:00:26.4]}
23... Rae8 {[%clk 0:00:08.6]} 24. Kd1 {[%clk 0:00:23.3]} 24... g5 {[%clk
0:00:04.4]} 25. Rh6 {[%clk 0:00:17.1]} 25... Ng4 {[%clk 0:00:03.8]} 26. Rxd6
{[%clk 0:00:15.4]} 26... Nf2+ {[%clk 0:00:02.7]} 27. Kc2 {[%clk 0:00:11.2]}
27... Nxh1 {[%clk 0:00:01.5]} 28. Rxh1 {[%clk 0:00:09.9]} 28... Ne5 {[%clk
0:00:01]} 29. Kd1 {[%clk 0:00:06]} 1-0

[Event "*** SCC Grand Prix: Titled Tuesday Blitz"]
[Site "Chess.com"]
[Date "2020.07.14"]
[Round "10"]
[White "chessdjw"]
[Black "StephenDedalus83"]
[Result "0-1"]
[WhiteElo "2672"]
[BlackElo "2817"]
[TimeControl "180+1"]
[EndTime "11:58:38 PDT"]
[Termination "StephenDedalus83 won on time"]

1. d4 {[%clk 0:03:00.9]} 1... Nf6 {[%clk 0:02:58.7]} 2. c4 {[%clk 0:03:01.4]}
2... g6 {[%clk 0:02:58.2]} 3. Nc3 {[%clk 0:03:01.7]} 3... Bg7 {[%clk 0:02:58.8]}
4. e4 {[%clk 0:03:01.6]} 4... d6 {[%clk 0:02:59.4]} 5. f3 {[%clk 0:03:02.1]}
5... O-O {[%clk 0:02:59.6]} 6. Be3 {[%clk 0:03:00.4]} 6... a6 {[%clk 0:03:00]}
7. Nge2 {[%clk 0:02:58.5]} 7... Nbd7 {[%clk 0:03:00.3]} 8. Qd2 {[%clk
0:02:57.5]} 8... c5 {[%clk 0:03:00.2]} 9. d5 {[%clk 0:02:50.3]} 9... b5 {[%clk
0:02:59.2]} 10. cxb5 {[%clk 0:02:50.5]} 10... Qa5 {[%clk 0:02:59.1]} 11. a4
{[%clk 0:02:35.6]} 11... Nb6 {[%clk 0:02:52.4]} 12. Nc1 {[%clk 0:02:24.1]} 12...
axb5 {[%clk 0:02:52]} 13. Bxb5 {[%clk 0:02:21.1]} 13... Ba6 {[%clk 0:02:52.3]}
14. Ra3 {[%clk 0:00:52.7]} 14... Nc4 {[%clk 0:02:33.2]} 15. Bxc4 {[%clk
0:00:51]} 15... Bxc4 {[%clk 0:02:33.1]} 16. Kf2 {[%clk 0:00:33.4]} 16... Rfb8
{[%clk 0:02:32.3]} 17. b3 {[%clk 0:00:27.6]} 17... Ng4+ {[%clk 0:02:24.5]} 18.
fxg4 {[%clk 0:00:26.2]} 18... Bxc3 {[%clk 0:02:24.4]} 19. Qc2 {[%clk 0:00:23.7]}
19... Qb4 {[%clk 0:02:17.9]} 20. Ra2 {[%clk 0:00:16.1]} 20... Bxb3 {[%clk
0:02:17.3]} 21. Nxb3 {[%clk 0:00:16.7]} 21... Qxb3 {[%clk 0:02:17.3]} 22. Qxb3
{[%clk 0:00:16]} 22... Rxb3 {[%clk 0:02:17.2]} 23. Rc1 {[%clk 0:00:12]} 23...
Ba5 {[%clk 0:01:37.4]} 24. h3 {[%clk 0:00:10.5]} 24... Rab8 {[%clk 0:01:36.5]}
25. Rcc2 {[%clk 0:00:10]} 25... Kg7 {[%clk 0:01:04.6]} 26. Bg5 {[%clk
0:00:09.8]} 26... R8b7 {[%clk 0:01:02.5]} 27. Re2 {[%clk 0:00:08.6]} 27... Bc3
{[%clk 0:00:59.6]} 28. a5 {[%clk 0:00:07.5]} 28... Ra7 {[%clk 0:00:58.2]} 29. a6
{[%clk 0:00:07.4]} 29... Rb6 {[%clk 0:00:58]} 30. Kf3 {[%clk 0:00:04.2]} 30...
f6 {[%clk 0:00:57]} 31. Be3 {[%clk 0:00:02.4]} 31... Rbxa6 {[%clk 0:00:57.1]}
32. Rxa6 {[%clk 0:00:03.3]} 32... Rxa6 {[%clk 0:00:57.5]} 33. Rc2 {[%clk
0:00:03.9]} 33... Ra3 {[%clk 0:00:57.4]} 34. Ke2 {[%clk 0:00:04.1]} 34... Be5
{[%clk 0:00:56.1]} 35. Rc1 {[%clk 0:00:04.1]} 35... Ra4 {[%clk 0:00:55]} 36. Kf3
{[%clk 0:00:03.4]} 36... Ra3 {[%clk 0:00:54.4]} 37. Ke2 {[%clk 0:00:02.9]} 37...
h5 {[%clk 0:00:52]} 38. gxh5 {[%clk 0:00:02.1]} 38... gxh5 {[%clk 0:00:51.7]}
39. g4 {[%clk 0:00:02.7]} 39... hxg4 {[%clk 0:00:50.8]} 40. hxg4 {[%clk
0:00:03.6]} 40... Kg6 {[%clk 0:00:49.7]} 41. Rb1 {[%clk 0:00:03.3]} 41... c4
{[%clk 0:00:49.3]} 42. Rb7 {[%clk 0:00:03.3]} 42... Kf7 {[%clk 0:00:47.9]} 43.
Rc7 {[%clk 0:00:03.7]} 43... Ra2+ {[%clk 0:00:47.9]} 44. Kf3 {[%clk 0:00:03.5]}
44... c3 {[%clk 0:00:48.1]} 45. g5 {[%clk 0:00:02.5]} 45... Rh2 {[%clk
0:00:43.5]} 0-1